bitfinex-derivatives/quotes_ETHF0:USTF0_20251119
["timestamp","ask_amount","ask_price","bid_price","bid_amount"]
[1763565498707,1.05248,3080.7,3078.9,0.4108]
[1763565498914,3.2078,3079.8,3078.9,0.4108]
[1763565499113,3.2078,3079.9,3078.6,10.0618]
[1763565499422,3.2078,3079.9,3078.6,0.00279194]
[1763565499423,3.2078,3078.7,3078.6,0.00279194]
[1763565499813,3.2078,3079.1,3078.6,0.00279194]
[1763565500119,2.56490655,3079.1,3078.6,0.00279194]
[1763565500327,3.2078,3079.3,3079.0,0.4108]
[1763565500619,3.2078,3079.7,3079.0,0.4108]
[1763565500817,3.2078,3079.3,3078.6,0.00279194]
[1763565501018,3.11777631,3079.8,3077.0,3.2078]
[1763565501019,3.2078,3078.7,3077.0,3.2078]
[1763565501317,3.76777631,3079.2,3077.0,3.2078]
[1763565501318,3.2078,3077.8,3077.0,3.2078]
[1763565501517,3.2078,3078.3,3077.4,3.2078]
[1763565501706,0.0048665,3078.5,3077.4,3.2078]
[1763565501911,3.2078,3078.4,3077.3,0.81]
[1763565502114,3.2078,3078.4,3077.7,0.09468381]
[1763565502617,3.2078,3078.0,3077.7,0.09468381]
[1763565503518,1.0536,3077.4,3075.6,3.2078]
[1763565503719,3.2078,3076.3,3075.6,3.2078]
[1763565504420,3.2078,3076.3,3075.6,0.00287073]
[1763565504421,3.2078,3075.9,3075.6,0.00287073]
[1763565505115,9.25120001,3075.8,3074.5,3.2078]
[1763565505315,3.2078,3075.3,3074.2,3.2078]
[1763565505622,3.2078,3075.3,3073.3,3.11777631]
[1763565505623,3.2078,3075.3,3074.6,3.2078]
[1763565505826,3.2078,3075.3,3074.1,3.2078]
[1763565506314,0.00487472,3075.5,3074.6,3.2078]
[1763565506516,0.00487472,3075.5,3074.2,3.2078]
[1763565506723,0.00487472,3075.5,3074.1,0.06008963]
[1763565506724,0.00487472,3075.5,3074.7,3.2078]
[1763565507025,3.2078,3076.0,3075.1,3.2078]
[1763565507210,3.2078,3075.6,3075.1,3.2078]
[1763565507515,3.2078,3075.2,3074.7,1.076]
[1763565507715,3.2078,3075.6,3074.7,1.076]
[1763565507918,3.2078,3075.3,3074.8,0.00487472]
[1763565508114,3.2078,3074.9,3074.8,0.00487472]
[1763565508517,9.2078,3074.9,3074.1,0.00348733]
[1763565508717,3.2078,3074.2,3074.1,0.00348733]
[1763565508921,3.2078,3074.2,3073.2,3.2078]
[1763565509221,3.2078,3074.6,3073.2,3.2078]
[1763565509410,3.2078,3073.7,3073.0,0.4108]
[1763565509617,3.21267472,3074.1,3073.0,0.4108]
[1763565509815,3.21267472,3074.1,3073.2,3.2078]
[1763565510015,0.00731233,3074.1,3073.4,3.2078]
[1763565510210,0.00731233,3074.1,3073.2,0.00251832]
[1763565510211,3.2078,3074.5,3073.8,3.2078]
[1763565510418,3.2078,3074.5,3073.6,3.2078]
[1763565510724,3.2078,3075.4,3074.1,3.2078]
[1763565511028,3.2078,3075.0,3074.4,3.2078]
[1763565511218,3.21549657,3075.0,3074.4,0.00487472]
[1763565511626,3.2078,3074.6,3074.4,0.00487472]
[1763565513129,3.2078,3074.6,3074.4,6.00487472]
[1763565513316,2.08966067,3074.6,3074.4,6.00487472]
[1763565513622,3.2078,3075.7,3074.4,9.73998472]
[1763565513819,3.2078,3075.7,3074.9,3.2078]
[1763565514018,3.2078,3075.7,3074.5,3.2078]
[1763565514725,3.2078,3075.3,3074.5,3.2078]
[1763565514929,3.2078,3075.3,3074.9,3.2078]
[1763565515422,3.2078,3075.3,3074.4,0.00487472]
[1763565515629,3.2078,3074.9,3074.4,0.00487472]
[1763565516317,3.2078,3075.3,3074.4,0.00487472]
[1763565516723,3.2078,3074.9,3074.4,0.00487472]
[1763565517419,3.21267472,3075.4,3074.7,3.2078]
[1763565517618,0.00487472,3075.4,3074.7,3.2078]
[1763565518214,0.00334737,3075.7,3075.3,0.4443]
[1763565518416,3.2078,3076.7,3075.6,3.2078]
[1763565519130,3.2078,3077.1,3076.3,3.2078]
[1763565519630,1.17975472,3077.0,3076.4,0.00487472]
[1763565519934,3.2078,3076.7,3076.4,0.00487472]
[1763565520224,1.17975472,3077.0,3076.4,0.00487472]
[1763565520427,1.17975472,3077.0,3076.7,3.2078]
[1763565521335,3.2078,3078.1,3076.7,3.2078]
[1763565521519,3.2078,3078.1,3077.3,3.2078]
[1763565521938,3.2078,3078.5,3077.7,3.2078]
[1763565522224,3.2078,3079.0,3078.1,3.2078]
[1763565522427,0.00487472,3078.9,3078.2,0.00487472]
[1763565522729,3.2078,3078.5,3078.2,0.00487472]
[1763565523824,3.2078,3078.5,3077.1,0.4443]
[1763565524032,3.2078,3077.9,3077.1,0.4443]
[1763565524324,3.2078,3077.9,3077.4,3.2078]
[1763565525639,3.2078,3078.4,3077.4,3.2078]
[1763565526236,3.2078,3077.8,3077.3,0.00487472]
[1763565526528,4.2611,3078.3,3077.4,3.2078]
[1763565527930,3.2078,3077.9,3077.4,3.2078]
[1763565528429,1.0533,3078.3,3077.4,3.2078]
[1763565528430,4.2611,3078.3,3077.4,3.2078]
[1763565528638,3.2078,3078.3,3077.4,3.2078]
[1763565528930,3.2078,3078.7,3077.9,3.2078]
[1763565530432,0.00487472,3078.9,3078.3,3.2078]
[1763565530627,0.00487472,3078.9,3078.4,0.4443]
[1763565530826,0.00487472,3078.9,3077.9,4.30080238]
[1763565531026,3.2078,3078.7,3077.9,3.2078]
[1763565531226,3.2078,3078.3,3077.4,3.2078]
[1763565531626,3.2078,3078.6,3077.8,3.2078]
[1763565531831,1.05795472,3078.9,3077.8,3.2078]
[1763565532038,3.2078,3078.6,3077.8,3.2078]
[1763565532538,1.05795472,3078.9,3078.2,3.2078]
[1763565534332,3.2078,3078.3,3077.6,3.2078]
[1763565534733,1.05322,3078.5,3077.6,3.2078]
[1763565535041,3.2078,3077.8,3077.3,3.27087472]
[1763565535232,4.63378,3078.4,3077.3,3.27087472]
[1763565535436,3.2078,3078.3,3077.3,3.27087472]
[1763565535640,3.2078,3077.8,3077.3,3.27087472]
[1763565536034,3.2078,3078.2,3077.3,3.27087472]
[1763565536634,4.26108,3078.4,3077.3,3.27087472]
[1763565536941,3.2078,3077.9,3077.3,3.27087472]
[1763565537440,3.2078,3078.0,3077.6,3.2078]
[1763565537639,3.2078,3078.1,3077.6,3.2078]
[1763565538037,1.05338,3078.0,3077.3,0.00487472]
[1763565540238,3.2078,3078.1,3077.6,0.4443]
[1763565540542,3.2078,3078.1,3077.5,3.2078]
[1763565541338,3.2078,3078.1,3077.6,0.4443]
[1763565541641,3.2078,3078.3,3077.6,0.4443]
[1763565541846,3.2078,3078.2,3077.6,0.4443]
[1763565542342,3.2078,3077.8,3077.5,1.09300238]
[1763565542545,3.2078,3077.8,3077.4,3.2078]
[1763565542850,1.05356,3077.5,3077.3,0.00487472]
[1763565543145,4.2614,3077.4,3077.3,0.00487472]
[1763565543343,3.2078,3077.8,3077.3,0.00487472]
[1763565543542,3.2078,3078.2,3077.4,3.2078]
[1763565543758,3.2078,3078.6,3078.0,0.042]
[1763565544135,0.00487472,3078.9,3078.4,3.6539]
[1763565544349,0.00487472,3078.9,3078.4,4.74690238]
[1763565544548,0.00487472,3078.9,3078.4,3.6539]
[1763565544747,0.00487472,3078.9,3078.8,3.2078]
[1763565544949,3.2078,3080.3,3078.8,3.2078]
[1763565545154,3.46247631,3081.6,3079.4,1.13780665]
[1763565545155,3.2078,3079.9,3079.4,1.13780665]
[1763565545336,3.2078,3079.9,3079.3,1.13780665]
[1763565545542,3.2078,3079.4,3079.0,1.13780665]
[1763565545842,1.42078,3079.2,3078.1,3.265]
[1763565546044,3.2078,3079.0,3078.9,0.00487472]
[1763565546546,1.0533,3078.3,3078.0,0.042]
[1763565546735,3.2078,3078.1,3078.0,0.042]
[1763565547349,3.2078,3079.0,3078.0,3.2498]
[1763565547553,3.2078,3079.0,3078.4,0.85778358]
[1763565547748,3.2078,3079.0,3078.4,0.00866689]
[1763565548050,4.26104,3078.5,3078.0,0.042]
[1763565548250,3.2078,3078.1,3078.0,0.042]
[1763565548446,3.2078,3078.2,3078.0,0.042]
[1763565548653,3.2078,3078.8,3078.0,4.95650998]
[1763565548847,4.2608,3079.2,3078.3,1.70670998]
[1763565549154,3.2078,3079.2,3078.7,1.70670998]
[1763565549451,3.2078,3079.2,3078.8,1.70670998]
[1763565549648,3.2078,3079.2,3078.9,1.70670998]
[1763565549838,3.2078,3079.2,3079.0,1.70670998]
[1763565550049,0.00404867,3079.4,3079.2,0.4461]
[1763565551355,3.2078,3080.1,3079.3,3.265]
[1763565551546,3.2078,3080.1,3079.7,1.71350238]
[1763565551853,3.2078,3080.6,3080.0,0.4461]
[1763565552150,3.2078,3080.6,3080.0,2.15948108]
[1763565552352,3.2161213,3080.6,3080.0,0.45097472]
[1763565552549,3.2078,3080.2,3080.0,0.00487472]
[1763565552750,3.2078,3080.2,3079.0,7.27337275]
[1763565552751,0.52652,3079.0,3078.9,4.807e-05]
[1763565552947,3.2078,3079.0,3077.7,3.2078]
[1763565553140,3.2078,3077.8,3076.6,4.06557275]
[1763565553345,3.2078,3077.1,3076.0,0.4461]
[1763565553551,1.05396,3076.4,3074.9,4.06557275]
[1763565553761,3.2078,3075.7,3075.2,3.6539]
[1763565553956,3.2078,3075.3,3075.2,0.00335923]
[1763565554648,12.45900001,3075.3,3074.4,0.4461]
[1763565554850,3.2078,3074.8,3073.5,3.2078]
[1763565555057,3.2078,3074.3,3073.6,3.6539]
[1763565555254,3.2078,3074.7,3074.0,3.2078]
[1763565555553,3.2078,3075.1,3074.4,0.4461]
[1763565555751,0.00487472,3074.7,3074.4,0.4461]
[1763565555954,3.2078,3075.6,3075.3,0.4461]
[1763565557044,3.2078,3075.6,3074.4,3.6469]
[1763565557257,0.00360096,3075.7,3074.4,3.6469]
[1763565557258,3.2078,3075.1,3074.4,3.6469]
[1763565559257,3.2078,3075.5,3075.3,0.4461]
[1763565559559,3.2078,3076.3,3076.2,0.4461]
[1763565559859,1.05406,3076.1,3074.4,3.6469]
[1763565560056,3.2078,3075.7,3074.4,3.6469]
[1763565560259,1.05406,3076.1,3074.4,3.6469]
[1763565560260,1.05409,3076.0,3075.0,3.2078]
[1763565560449,0.00350774,3076.0,3075.7,3.2078]
[1763565560761,4.26148,3077.2,3075.7,3.2078]
[1763565561063,4.26148,3077.2,3076.5,3.2078]
[1763565561358,3.2078,3077.7,3077.1,0.4461]
[1763565561557,3.21077424,3077.7,3077.3,3.2078]
[1763565561854,3.21564896,3077.7,3077.3,3.21108875]
[1763565562054,0.00784896,3077.7,3077.3,3.21108875]
[1763565562851,3.21564896,3077.7,3077.3,0.00328875]
[1763565563752,0.00784896,3077.7,3077.3,3.21108875]
[1763565564152,3.21564896,3077.7,3077.3,0.00328875]
[1763565565156,0.00784896,3077.7,3077.4,3.2078]
[1763565567064,3.2078,3078.6,3078.0,0.5523]
[1763565567367,3.2078,3078.6,3078.1,3.2078]
[1763565567863,3.21094838,3078.6,3078.1,3.2078]
[1763565568264,3.21094838,3078.6,3078.0,0.00487472]
[1763565568572,3.2078,3078.1,3077.3,0.00328875]
[1763565568867,1.0536,3077.4,3077.3,0.00328875]
[1763565569564,4.2614,3077.4,3077.3,0.00328875]
[1763565570166,1.0538,3076.9,3076.4,3.2078]
[1763565570472,3.2078,3077.0,3076.4,3.2078]
[1763565570774,0.52714,3075.4,3074.8,3.2078]
[1763565571166,1.06308148,3075.4,3074.8,3.21589808]
[1763565571865,0.00013459,3075.4,3075.3,0.5065]
[1763565572873,0.00371992,3075.4,3075.3,0.5065]
[1763565573170,3.2078,3076.2,3075.3,6.5065]
[1763565573376,3.2078,3076.2,3075.7,3.2078]
[1763565574371,1.05408,3076.0,3075.7,3.2078]
[1763565574572,1.05408,3076.0,3075.3,3.7143]
[1763565574871,1.05408,3076.0,3075.7,3.2078]
[1763565575472,1.05414,3075.8,3075.7,3.2078]
[1763565575672,1.05414,3075.8,3075.3,0.5065]
[1763565575873,4.26194,3075.8,3075.3,0.5065]
[1763565576573,1.05414,3075.8,3075.3,0.5065]
[1763565576879,3.2078,3075.7,3075.0,3.2078]
[1763565577066,3.2078,3075.7,3074.8,0.00809808]
[1763565577266,0.52711,3075.6,3075.0,3.2078]
[1763565577466,0.52711,3075.6,3074.4,0.5523]
[1763565577467,1.05452,3074.7,3074.6,3.2078]
[1763565577673,1.05456,3074.6,3074.1,3.2078]
[1763565577867,1.05458,3074.5,3074.1,3.2078]
[1763565578374,3.2078,3074.8,3073.7,3.2078]
[1763565578678,2.62761451,3075.3,3073.9,0.00487472]
[1763565578679,0.52739,3074.0,3073.9,0.00487472]
[1763565578868,4.26574477,3074.0,3073.9,0.00487472]
[1763565579176,0.00316477,3074.0,3073.7,3.21110869]
[1763565579376,0.00316477,3074.0,3073.7,0.00330869]
[1763565579576,0.00316477,3074.0,3073.7,3.21110869]
[1763565579767,0.00316477,3074.0,3073.7,0.00330869]
[1763565579968,0.00316477,3074.0,3073.8,3.2078]
[1763565581377,0.00316477,3074.0,3073.7,0.00330869]
[1763565581574,1.05482,3073.8,3073.7,0.00330869]
[1763565581873,0.00316477,3074.0,3073.7,0.00330869]
[1763565582780,1.05482,3073.8,3073.7,0.00330869]
[1763565583878,1.0549,3073.6,3073.5,0.00487472]
[1763565585277,1.0549,3073.6,3073.5,0.00824402]
[1763565585475,0.00316477,3074.0,3073.6,0.5065]
[1763565585688,0.00316477,3074.0,3073.5,0.00824402]
[1763565585977,1.0549,3073.6,3073.5,0.00824402]
[1763565586681,0.00316477,3074.0,3073.6,0.5065]
[1763565586880,0.00316477,3074.0,3073.7,3.2078]
[1763565587281,0.00316477,3074.0,3073.6,0.5065]
[1763565587583,0.00316477,3074.0,3073.5,0.00824402]
[1763565587584,1.05488,3073.7,3073.5,0.00824402]
[1763565587783,1.05488,3073.7,3073.6,0.5065]
[1763565587971,1.05488,3073.7,3073.6,3.7143]
[1763565588283,0.00316477,3074.0,3073.6,3.7143]
[1763565589280,1.05792477,3074.0,3073.6,3.7143]
[1763565589476,0.00316477,3074.0,3073.6,0.5065]
[1763565589678,1.0548,3073.9,3073.7,3.2078]
[1763565589872,0.00316477,3074.0,3073.7,3.2078]
[1763565589873,1.05482,3073.8,3073.7,3.2078]
[1763565590171,1.05482,3073.8,3073.5,0.00824402]
[1763565590172,1.0549,3073.6,3073.5,0.00824402]
[1763565590576,1.05506,3073.1,3072.8,3.2078]
[1763565590978,3.2078,3073.8,3072.8,3.2078]
[1763565591183,0.52761,3072.7,3072.4,3.2078]
[1763565591373,1.05534,3072.3,3071.9,3.2078]
[1763565591686,1.05542,3072.1,3072.0,3.2078]
[1763565591885,1.05542,3072.1,3071.9,0.00344624]
[1763565592283,0.00487472,3072.4,3072.0,3.2078]
[1763565592478,1.0554,3072.2,3071.9,0.00344624]
[1763565592880,1.05508,3073.1,3072.0,3.2078]
[1763565593080,3.2078,3072.9,3072.0,3.2078]
[1763565593279,4.26294,3072.9,3072.0,3.2078]
[1763565593482,1.05516,3072.8,3072.0,3.2078]
[1763565593888,0.00488273,3072.7,3072.0,3.2078]
[1763565594795,1.05534,3072.4,3072.0,3.2078]
[1763565595183,4.30976,3072.3,3071.9,0.00344624]
[1763565595390,1.05536,3072.3,3071.9,0.00344624]
[1763565595691,1.05536,3072.3,3071.9,3.21124624]
[1763565595992,1.0554,3072.2,3071.9,0.00344624]
[1763565596588,1.0554,3072.2,3071.9,3.21124624]
[1763565596897,1.05544,3072.0,3071.9,0.00344624]
[1763565597187,1.0556,3071.6,3071.1,3.2078]
[1763565597393,1.05562,3071.5,3071.1,3.2078]
[1763565598082,1.05566,3071.4,3071.2,0.09334167]
[1763565598281,3.2078,3071.4,3070.5,0.01703897]
[1763565598486,3.2078,3071.2,3070.5,3.22483897]
[1763565598896,3.2078,3070.6,3070.5,0.01703897]
[1763565599088,3.2078,3071.4,3070.5,0.01703897]
[1763565599393,0.00488273,3071.3,3070.5,0.02124202]
[1763565599988,1.06060273,3071.3,3070.5,0.02124202]
[1763565600182,3.2078,3070.9,3070.5,0.02124202]
[1763565600385,3.2078,3070.5,3067.9,2.27528014]
[1763565600597,5.83541451,3068.0,3066.4,0.5065]
[1763565600798,2.62761451,3069.2,3067.2,0.5065]
[1763565600998,1.05636,3069.4,3067.2,0.5065]
[1763565601191,0.00488273,3067.5,3067.2,0.5065]
[1763565601497,3.2078,3068.0,3067.3,3.2078]
[1763565601694,3.2078,3068.9,3068.1,0.6514]
[1763565601889,3.2078,3070.0,3068.8,3.2078]
[1763565602093,3.2078,3070.4,3069.7,3.2078]
[1763565602286,3.2078,3069.8,3068.2,4.29403961]
[1763565602503,3.2078,3068.5,3067.5,3.2078]
[1763565602993,3.2078,3068.6,3068.0,0.6514]
[1763565603392,3.21268273,3068.6,3068.0,0.0023038]
[1763565603593,3.21268273,3068.6,3067.6,3.2078]
[1763565603594,3.2078,3068.2,3067.6,3.2078]
[1763565603789,3.2078,3067.7,3067.2,0.5065]
[1763565604094,3.2078,3067.3,3066.5,3.2078]
[1763565604295,3.2078,3066.9,3066.1,3.2078]
[1763565604496,3.2078,3066.9,3064.7,11.81764158]
[1763565604497,3.2078,3066.2,3064.7,0.09064158]
[1763565604695,3.2078,3064.9,3064.7,0.09064158]
[1763565604892,3.21148693,3064.9,3064.7,0.00272982]
[1763565605093,0.9763986,3064.8,3063.7,3.2078]
[1763565605286,3.21148693,3064.9,3063.4,3.2078]
[1763565605501,3.21148693,3064.9,3063.0,3.8592]
[1763565605502,3.2078,3064.2,3063.0,3.8592]
[1763565605795,3.2078,3064.2,3063.4,3.2078]
[1763565606101,3.2078,3063.6,3062.3,0.5]
[1763565606288,3.2078,3063.0,3062.3,0.5]
[1763565606494,2.31519125,3063.0,3062.4,3.2078]
[1763565606790,3.2078,3064.2,3063.0,0.6514]
[1763565607102,2.8943914,3064.2,3063.7,3.2078]
[1763565607400,3.2078,3063.8,3063.0,0.65492873]
[1763565607598,3.2078,3063.7,3063.0,3.86272873]
[1763565607901,0.00489093,3063.7,3063.4,3.2078]
[1763565608297,3.2078,3064.2,3063.5,6.0]
[1763565608501,0.00368693,3064.9,3063.8,3.2078]
[1763565608793,3.2078,3065.6,3064.8,3.2078]
[1763565609000,3.2078,3066.0,3064.8,6.1618]
[1763565609190,3.2078,3065.4,3065.1,0.00489093]
[1763565609695,0.00363649,3065.4,3065.1,0.00489093]
[1763565610095,0.00489093,3065.7,3065.1,6.00489093]
[1763565610290,0.00489093,3065.7,3065.1,0.00489093]
[1763565610886,3.2078,3065.2,3064.6,0.6514]
[1763565611086,3.2078,3064.8,3064.6,0.6514]
[1763565611990,3.2078,3064.7,3064.6,0.6514]
[1763565612192,3.2078,3064.7,3064.4,0.00489093]
[1763565612594,3.2078,3064.7,3064.6,0.6514]
[1763565612892,3.2078,3065.1,3064.6,0.6514]
[1763565613304,3.2078,3065.1,3064.4,0.00489093]
[1763565613998,3.2078,3064.1,3062.1,3.2078]
[1763565614191,3.2078,3063.1,3062.1,3.2078]
[1763565614387,3.2078,3063.9,3063.0,3.86272873]
[1763565614691,0.00279489,3065.2,3063.0,0.65492873]
[1763565614996,3.2078,3063.1,3063.0,0.65492873]
[1763565615504,3.2078,3063.5,3063.0,0.65492873]
[1763565615898,3.2078,3063.1,3063.0,0.65492873]
[1763565617302,3.2078,3063.1,3062.3,0.5]
[1763565617303,9.2078,3063.1,3062.3,0.5]
[1763565617502,3.2078,3062.5,3062.3,0.5]
[1763565617700,3.2078,3062.5,3060.7,0.52967]
[1763565617701,3.2078,3062.5,3060.3,3.2078]
[1763565617896,3.2078,3061.4,3059.9,3.2078]
[1763565618094,3.2078,3060.3,3059.4,3.2078]
[1763565618300,3.21167504,3060.3,3060.0,0.6544854]
[1763565618500,0.00387504,3060.3,3060.0,0.6544854]
[1763565619095,0.00489971,3061.0,3060.0,0.6544854]
[1763565619401,2.88761869,3060.8,3060.0,0.6544854]
[1763565619603,2.72816783,3060.8,3060.2,3.2078]
[1763565620005,2.72816783,3060.8,3060.2,9.2078]
[1763565620302,2.7309336,3060.8,3060.0,0.6544854]
[1763565620610,0.00276577,3060.8,3060.0,0.6544854]
[1763565620803,3.2078,3060.7,3060.0,0.6544854]
[1763565621204,3.2078,3060.3,3060.0,0.6544854]
[1763565621899,9.2078,3060.3,3059.0,0.6514]
[1763565622098,4.26764,3059.3,3057.8,3.2078]
[1763565622400,0.00489971,3059.1,3058.2,3.29844158]
[1763565622902,0.00489971,3059.1,3058.6,3.2078]
[1763565623105,3.2078,3060.1,3059.1,0.6514]
[1763565623510,3.2078,3060.1,3059.2,1.331]
[1763565623804,3.2078,3059.7,3059.1,0.6514]
[1763565624307,6.36697693,3059.2,3054.1,2.25343474]
[1763565624520,3.2078,3054.2,3053.6,0.6374]
[1763565624812,1.0607,3056.8,3054.7,0.7806]
[1763565625110,7.6139619,3056.8,3054.7,0.7806]
[1763565625404,3.2078,3054.8,3054.7,0.00242726]
[1763565625714,3.2078,3055.3,3055.0,0.7806]
[1763565625902,3.2078,3055.5,3055.0,0.7736]
[1763565626100,3.21271175,3056.1,3055.0,0.7736]
[1763565626308,3.2078,3055.7,3055.1,2.366]
[1763565626700,3.2078,3055.7,3055.0,0.7736]
[1763565627101,3.2078,3055.7,3055.0,6.7736]
[1763565627307,3.2078,3055.7,3055.1,3.46]
[1763565627500,3.2078,3055.2,3055.0,3.4726]
[1763565627705,3.2078,3055.2,3055.0,0.7736]
[1763565627901,3.2078,3055.2,3055.1,6.0]
[1763565628098,3.2078,3055.7,3055.1,9.46]
[1763565628307,3.2078,3055.7,3055.2,3.461]
[1763565628502,3.2078,3055.7,3055.3,3.047]
[1763565628712,3.2078,3055.7,3055.2,3.46]
[1763565629007,3.2078,3055.7,3055.3,3.46]
[1763565629206,3.2078,3055.7,3055.0,0.7736]
[1763565629409,3.21271175,3056.1,3055.6,3.2078]
[1763565629626,0.00491175,3056.1,3055.7,15.21]
[1763565629804,0.00491175,3056.1,3055.7,11.77]
[1763565630114,3.21271175,3056.1,3055.7,11.77]
[1763565630505,3.21271175,3056.1,3055.0,44.7814]
[1763565630813,3.2078,3055.4,3054.7,0.00242726]
[1763565631013,3.2078,3054.8,3052.7,3.2078]
[1763565631309,3.2078,3053.2,3052.7,3.2078]
[1763565631620,3.2078,3053.6,3052.8,3.463]
[1763565631805,3.2078,3053.6,3052.9,18.4438]
[1763565632109,3.21201333,3053.6,3052.9,0.00232877]
[1763565632309,0.00421333,3053.6,3053.3,3.2078]
[1763565632507,0.00421333,3053.6,3053.1,3.2078]
[1763565632811,3.2078,3054.0,3053.2,13.201]
[1763565633012,3.2078,3055.6,3053.9,3.2078]
[1763565633219,3.2078,3055.5,3054.0,3.2078]
[1763565633511,3.2078,3055.3,3054.1,5.3048]
[1763565633711,3.2078,3055.3,3054.2,15.248]
[1763565634013,0.00491175,3055.1,3054.7,3.2078]
[1763565634202,0.00491175,3055.1,3054.5,3.2078]
[1763565634400,0.00491175,3055.1,3054.6,15.25]
[1763565634606,0.00491175,3055.1,3055.0,3.2078]
[1763565634809,0.00491175,3055.1,3055.0,6.6788]
[1763565635011,0.00491175,3055.1,3055.0,3.2078]
[1763565635212,0.00491175,3055.1,3055.0,6.6778]
[1763565635408,0.0035556,3055.3,3055.0,12.6778]
[1763565635810,3.2078,3056.1,3055.0,12.6778]
[1763565636116,3.2078,3057.0,3055.7,3.2078]
[1763565636316,3.2078,3057.0,3055.2,3.15917693]
[1763565636317,0.00491175,3056.7,3056.0,0.00491175]
[1763565636518,3.2078,3056.6,3056.0,0.00491175]
[1763565636709,0.00491175,3056.7,3056.1,3.471]
[1763565636909,0.00491175,3056.7,3056.1,3.2078]
[1763565637215,3.2078,3057.5,3056.5,3.2078]
[1763565637405,3.2078,3057.5,3056.6,11.78]
[1763565637613,3.2078,3057.9,3056.7,3.2078]
[1763565637823,3.2078,3057.5,3056.7,3.2078]
[1763565638118,3.2078,3057.5,3056.8,3.469]
[1763565638319,3.21012781,3057.9,3056.7,3.2078]
[1763565638516,3.2078,3057.5,3056.8,3.469]
[1763565638712,3.2078,3057.5,3056.6,11.78]
[1763565638918,0.00491175,3057.6,3056.8,3.2078]
[1763565639119,3.2078,3057.5,3056.6,14.9878]
[1763565639418,3.2078,3057.5,3056.9,3.467]
[1763565639613,3.2078,3057.5,3057.0,3.467]
[1763565639918,3.2078,3057.5,3056.6,14.9878]
[1763565640120,0.00491175,3057.6,3056.6,14.9878]
[1763565640121,3.2078,3057.1,3056.6,11.78]
[1763565640323,3.2078,3057.1,3056.7,3.465]
[1763565640623,3.2078,3057.5,3056.7,3.465]
[1763565641011,3.2078,3057.5,3056.6,11.78]
[1763565641313,3.2078,3057.5,3056.7,3.464]
[1763565641509,0.00491175,3057.6,3056.9,3.2078]
[1763565641912,0.00491175,3057.6,3057.0,15.242]
[1763565642312,3.2078,3057.5,3057.1,3.462]
[1763565642520,3.2078,3057.5,3057.0,11.78]
[1763565642720,3.2078,3057.5,3056.5,3.2078]
[1763565643023,0.00491175,3057.6,3057.1,3.46]
[1763565643320,3.2078,3057.2,3057.0,3.46]
[1763565644023,0.00491175,3057.6,3057.0,6.6678]
[1763565644206,0.00491175,3057.6,3057.4,3.2078]
[1763565644910,3.2078,3057.5,3056.7,3.2078]
[1763565645214,3.2078,3057.1,3056.8,3.267]
[1763565645414,0.9458,3056.9,3056.8,3.267]
[1763565645710,0.9458,3056.9,3056.1,44.0078]
[1763565645911,0.53045,3056.3,3055.2,3.2078]
[1763565646114,0.9458,3055.8,3055.3,2.968]
[1763565646415,3.2078,3056.7,3055.6,3.2078]
[1763565646620,0.9458,3056.9,3056.3,3.2078]
[1763565646817,3.2078,3057.6,3056.8,3.2078]
[1763565647020,3.2078,3056.3,3055.5,4.33584626]
[1763565647229,1.06124,3055.2,3053.7,4.4768]
[1763565647521,1.06124,3055.2,3054.7,0.9525]
[1763565647823,1.06124,3055.2,3054.8,2.669]
[1763565648023,1.06517593,3055.2,3054.8,2.671879]
[1763565648224,3.2078,3055.8,3055.0,3.2078]
[1763565648517,1.06062,3057.1,3055.4,3.2078]
[1763565648715,3.2078,3056.8,3056.2,3.2078]
[1763565648911,3.2078,3056.8,3056.3,3.467]
[1763565649218,3.21126886,3056.8,3056.3,3.467]
[1763565649819,3.21126886,3056.8,3056.2,11.78691175]
[1763565650217,3.21126886,3056.8,3056.3,3.465]
[1763565650421,3.2078,3056.4,3055.6,3.2078]
[1763565650617,3.2078,3055.7,3055.3,2.51633585]
[1763565650820,3.2078,3055.7,3054.9,3.465]
[1763565650821,0.53065,3055.1,3054.9,3.465]
[1763565651019,3.2078,3055.0,3054.8,0.002879]
[1763565651333,3.2078,3054.2,3052.6,3.2078]
[1763565651515,3.2078,3054.2,3051.1,2.81593541]
[1763565651516,1.06238,3052.0,3050.6,2.81593541]
[1763565651717,1.06192,3053.3,3051.4,0.9525]
[1763565651917,3.2078,3053.4,3052.3,3.2078]
[1763565652121,3.2078,3053.4,3052.8,0.9525]
[1763565652122,0.00403168,3053.4,3052.8,0.9525]
[1763565652319,0.00491175,3053.2,3052.8,0.9525]
[1763565652526,0.00491175,3053.2,3052.9,3.62205121]
[1763565652723,3.2078,3054.8,3053.0,15.277]
[1763565652926,3.2078,3054.4,3053.3,3.2078]
[1763565653328,1.06126,3055.2,3053.8,3.2078]
[1763565653517,1.06126,3055.2,3054.0,0.9525]
[1763565653518,3.2078,3054.5,3054.0,0.9525]
[1763565653715,3.2078,3054.5,3053.9,0.00491175]
[1763565653920,0.00357622,3054.5,3054.1,3.2078]
[1763565654431,0.00357622,3054.5,3054.0,1.08155121]
[1763565654624,0.00357622,3054.5,3054.1,4.4288]
[1763565654927,0.00357622,3054.5,3054.0,0.9525]
[1763565655123,3.2078,3054.2,3053.9,0.00491175]
[1763565655524,3.2078,3054.2,3052.7,3.2078]
[1763565655736,3.2078,3054.2,3051.9,3.15917693]
[1763565655737,3.2078,3054.2,3053.1,3.2078]
[1763565656028,0.00357622,3054.5,3054.0,0.9525]
[1763565656418,0.00357622,3054.5,3054.1,2.49705121]
[1763565656623,3.2078,3054.2,3054.0,0.13396296]
[1763565656924,0.00357622,3054.5,3054.0,1.08646296]
[1763565657126,3.2078,3054.2,3052.3,0.0028681]
[1763565657331,3.2078,3053.0,3052.5,3.2078]